fUSD/lending_fUSD_20260329
["ID","MTS","AMOUNT","RATE_DAILY","PERIOD"]
[419026310,1774777841822,-250.0,0.00015199,2]
[419026311,1774777841832,-250.0,0.00015199,2]
[419026312,1774777841842,-250.0,0.00015199,2]
[419026313,1774777841851,-174.61919141,0.00015199,2]
[419026314,1774777841861,-250.0,0.00015199,2]
[419026315,1774777841870,-250.0,0.00015199,2]
[419026316,1774777841880,-250.0,0.00015199,2]
[419026317,1774777841891,-250.0,0.00015199,2]
[419026318,1774777841900,-250.0,0.00015199,2]
[419026319,1774777841910,-250.0,0.00015199,2]
[419026320,1774777841920,-250.0,0.00015199,2]
[419026321,1774777841929,-156.65188468,0.00015199,2]
[419026322,1774777841939,-262.90206542,0.00015199,2]
[419026323,1774777841949,-371.288842,0.000152,2]
[419026324,1774777841959,-991.577344,0.000152,2]
[419026325,1774777841968,-2000.0,0.000152,2]
[419026326,1774777841978,-9905.5980765,0.00015254,2]
[419026327,1774777841988,-500.0,0.00015254,2]
[419026328,1774777841997,-151.0,0.00015254,2]
[419026329,1774777842085,-272.62944185,0.00015254,2]
[419026330,1774777842095,-7966.10121316,0.00015269,2]
[419026331,1774777842104,-185.268842,0.00015273,7]
[419026332,1774777842114,-10272.10520533,0.00015309,2]
[419026333,1774777842124,-500.0,0.00015309,2]
[419026334,1774777842133,-151.0,0.00015309,2]
[419026335,1774777842144,-282.71673119,0.00015309,2]
[419026336,1774777842154,-172.503387,0.0001531,7]
[419026337,1774777842164,-154.53434814,0.0001532,2]
[419026338,1774777842173,-1804.69172639,0.00015354,2]
[419026339,1774777842184,-2653.35495619,0.00015364,2]
[419026340,1774777842194,-500.0,0.00015364,2]
[419026341,1774777842203,-151.0,0.00015364,2]
[419026342,1774777842213,-293.17725025,0.00015364,2]
[419026343,1774777842222,-2500.0,0.00015364,2]
[419026344,1774777842231,-2500.0,0.00015364,2]
[419026345,1774777842241,-433.0,0.0001537,2]
[419026346,1774777842250,-500.0,0.00015419,2]
[419026347,1774777842259,-151.0,0.00015419,2]
[419026348,1774777842268,-304.02480851,0.00015419,2]
[419026349,1774777842278,-505.63728383,0.00015427,2]
[419026350,1774777842287,-467.0,0.00015431,2]
[419026351,1774777842296,-178.663641,0.00015438,7]
[419026352,1774777842306,-500.0,0.00015474,2]
[419026353,1774777842316,-151.0,0.00015474,2]
[419026354,1774777842326,-315.27372642,0.00015474,2]
[419026355,1774777842335,-258.049,0.000155,2]
[419026356,1774777842345,-467.0,0.00015522,2]
[419026357,1774777842354,-500.0,0.00015529,2]
[419026358,1774777842364,-151.0,0.00015529,2]
[419026359,1774777842374,-323.14410244,0.00015529,2]
[419026360,1774777842383,-166.34201,0.00015582,7]
[419026361,1774777842392,-207.167174,0.00015582,7]
[419026362,1774777842401,-500.0,0.00015584,2]
[419026363,1774777842411,-151.0,0.00015584,2]
[419026364,1774777842420,-8394.02001199,0.00015585,2]
[419026365,1774777842430,-7966.10121316,0.00015585,2]
[419026366,1774777842439,-467.0,0.00015591,2]
[419026367,1774777842448,-2000.0,0.000156,2]
[419026368,1774777842457,-1855.3,0.000156,2]
[419026369,1774777842466,-1100.51,0.000156,2]
[419026370,1774777842475,-162.57,0.00015624,2]
[419026371,1774777842484,-500.0,0.00015639,2]
[419026372,1774777842493,-151.0,0.00015639,2]
[419026373,1774777842502,-467.0,0.00015661,2]
[419026374,1774777842512,-3632.86266977,0.0001568,2]
[419026375,1774777842521,-500.0,0.00015694,2]
[419026376,1774777842531,-151.0,0.00015694,2]
[419026377,1774777842540,-478.15,0.000157,2]
[419026378,1774777842550,-1407.81,0.000157,2]
[419026380,1774777842559,-467.0,0.00015743,2]
[419026381,1774777842568,-1481.23780761,0.00015747,2]
[419026382,1774777842578,-181.08010149,0.00015747,2]
[419026383,1774777842587,-500.0,0.00015749,2]
[419026384,1774777842597,-151.0,0.00015749,2]
[419026385,1774777842606,-294.0,0.00015753,2]
[419026387,1774777842615,-202.0,0.00015753,2]
[419026389,1774777842624,-559.0,0.00015781,2]
[419026391,1774777842633,-796.0,0.00015781,2]
[419026392,1774777842643,-2000.0,0.000158,2]
[419026393,1774777842652,-467.0,0.00015822,2]
[419026394,1774777842661,-203.5937987,0.00015828,2]
[419026395,1774777842671,-500.0,0.00015871,2]
[419026396,1774777842680,-200.0,0.00015871,2]
[419026397,1774777842690,-467.0,0.00015871,2]
[419026398,1774777842699,-500.0,0.00015872,2]
[419026399,1774777842709,-200.0,0.00015872,2]
[419026400,1774777842718,-2000.0,0.0001589,2]
[419026401,1774777842728,-419.12397739,0.00015898,2]
[419026402,1774777842738,-419.12397738,0.00015899,2]
[419026403,1774777842747,-150.0,0.000159,2]
[419026404,1774777842756,-150.0,0.000159,2]
[419026405,1774777842766,-150.0,0.000159,2]
[419026406,1774777842775,-150.0,0.000159,2]
[419026407,1774777842785,-505.63728383,0.000159,2]
[419026408,1774777842794,-150.0,0.000159,2]
[419026410,1774777842803,-8394.02001199,0.000159,2]
[419026412,1774777842813,-154.06346257,0.000159,2]
[419026414,1774777842823,-150.0,0.000159,2]
[419026415,1774777842832,-150.0,0.000159,2]
[419026416,1774777842842,-7966.10121316,0.000159,2]
[419026417,1774777842852,-419.12397738,0.000159,2]
[419026418,1774777842861,-2009.0,0.000159,5]
[419026419,1774777842870,-1607.0,0.000159,5]
[419026420,1774777842880,-2500.0,0.00015912,2]
[419026421,1774777842889,-3000.0,0.00015912,2]
[419026422,1774777842898,-467.0,0.00015934,2]
[419026423,1774777842907,-467.0,0.00015946,2]
[419026424,1774777842916,-212.0,0.00015955,2]
[419026425,1774777842926,-2139.47157294,0.00015956,2]
[419026426,1774777842935,-1968.33862778,0.00015956,2]
[419026427,1774777842944,-500.0,0.00015959,2]
[419026428,1774777842953,-5000.0,0.0001596,2]
[419026429,1774777842963,-700.0,0.0001597,2]
[419026430,1774777842972,-700.0,0.0001597,2]
[419026431,1774777842982,-700.0,0.0001597,2]
[419026432,1774777842991,-1354.65118905,0.0001597,2]
[419026433,1774777843000,-166.0,0.00015973,2]
[419026434,1774777843010,-500.0,0.00015973,2]
[419026435,1774777843019,-500.0,0.00015973,2]
[419026436,1774777843029,-502.54797101,0.00015973,2]
[419026437,1774777843039,-500.0,0.00015973,2]
[419026438,1774777843048,-500.0,0.00015973,2]
[419026439,1774777843058,-500.0,0.00015973,2]
[419026440,1774777843067,-500.0,0.00015973,2]
[419026441,1774777843077,-403.83679365,0.00015973,2]
[419026442,1774777843087,-500.0,0.00015973,2]
[419026443,1774777843097,-500.0,0.00015973,2]
[419026444,1774777843107,-500.0,0.00015973,2]
[419026445,1774777843117,-500.0,0.00015973,2]
[419026446,1774777843127,-500.0,0.00015973,2]
[419026447,1774777843137,-500.0,0.00015973,2]
[419026448,1774777843147,-395.74377257,0.00015973,2]
[419026449,1774777843156,-500.0,0.00015973,2]
[419026450,1774777843165,-609.23348249,0.00015973,2]
[419026451,1774777843175,-500.0,0.00015973,2]
[419026452,1774777843184,-500.0,0.00015973,2]
[419026453,1774777843194,-500.0,0.00015973,2]
[419026454,1774777843204,-500.0,0.00015973,2]
[419026455,1774777843213,-285.70561794,0.00015973,2]
[419026456,1774777843223,-500.0,0.00015973,2]
[419026457,1774777843232,-500.0,0.00015973,2]
[419026458,1774777843241,-500.0,0.00015973,2]
[419026459,1774777843251,-500.0,0.00015973,2]
[419026460,1774777843260,-500.0,0.00015973,2]
[419026461,1774777843269,-599.64507648,0.00015973,2]
[419026462,1774777843278,-500.0,0.00015973,2]
[419026463,1774777843288,-501.14424675,0.00015973,2]
[419026464,1774777843297,-500.0,0.00015973,2]
[419026465,1774777843307,-500.0,0.00015973,2]
[419026466,1774777843317,-500.0,0.00015973,2]
[419026467,1774777843403,-451.19810826,0.00015985,2]
[419026468,1774777843413,-789.89997938,0.00015985,2]
[419026469,1774777843424,-421.23728626,0.00015985,2]
[419026470,1774777843434,-564.65957181,0.00015985,2]
[419026471,1774777843444,-666.12307099,0.00015985,2]
[419026472,1774777843454,-674.15793299,0.00015985,2]
[419026473,1774777843464,-151.59249756,0.00015986,2]
[419026474,1774777843474,-241.00406551,0.00015988,2]
[419026475,1774777843485,-151.0,0.00015997,2]
[419026476,1774777843494,-1443.24,0.00015997,2]
[419026477,1774777843504,-1443.24,0.00015997,2]
[419026478,1774777843515,-1443.24,0.00015997,2]
[419026479,1774777843525,-500.0,0.00015997,2]
[419026480,1774777843535,-500.0,0.00015997,2]
[419026481,1774777843546,-500.0,0.00015997,2]
[419026482,1774777843556,-500.0,0.00015997,2]
[419026483,1774777843566,-10296.7575881,0.00015998,2]
[419026484,1774777843576,-3365.3073281,0.00015998,2]
[419026485,1774777843586,-518067.13010218,0.00015998,2]
[419026492,1774777843774,-339.05,0.00013061,2]
[419026495,1774777845799,-2257.50693147,0.00013061,2]
[419026496,1774777845852,-3232.41256097,0.00013061,2]
[419026497,1774777845863,-2468.0,0.00014562,2]
[419026498,1774777845873,-326.26021577,0.00015333,2]
[419026499,1774777845882,-4585.4658846,0.00015998,2]
[419026501,1774777876123,167.44,7.337e-05,2]
[419026502,1774777876300,167.44,8.385e-05,2]
[419026503,1774777876496,167.44,9.433e-05,2]
[419026504,1774777876691,167.44,0.00010481,2]
[419026505,1774777918187,2246.73,0.00017,60]
[419026506,1774777942993,789.5,0.00010093,2]
[419026507,1774778005352,898.9,9.782e-05,2]
[419026512,1774778235405,10000.0,0.00017,60]
[419026513,1774778256111,1048.86,0.00017,60]
[419026528,1774779032449,-270.07601474,0.000107,2]
[419026529,1774779032459,-167.44,0.00011529,2]
[419026530,1774779032468,-500.0,0.00011529,2]
[419026531,1774779032478,-500.0,0.00011529,2]
[419026532,1774779032488,-166.66,0.00011582,2]
[419026533,1774779032498,-1600.0,0.00011811,2]
[419026534,1774779032507,-166.66,0.00011826,2]
[419026535,1774779032517,-1500.0,0.0001184,2]
[419026536,1774779032527,-412.82,0.00011883,2]
[419026537,1774779032536,-1200.0,0.00011915,2]
[419026538,1774779032547,-2000.0,0.00011916,2]
[419026539,1774779032558,-166.66,0.0001207,2]
[419026540,1774779032568,-166.66,0.00012314,2]
[419026541,1774779032579,-300.0,0.00012332,2]
[419026542,1774779032590,-298.47,0.00012334,2]
[419026543,1774779032600,-228.85453188,0.00012488,2]
[419026544,1774779032610,-1500000.0,0.00012498,2]
[419026545,1774779032620,-150.0,0.000125,2]
[419026546,1774779032630,-166.66,0.00012558,2]
[419026547,1774779032640,-150.0,0.00012577,2]
[419026548,1774779032650,-167.44,0.00012577,2]
[419026549,1774779032660,-2944.4425,0.00012587,2]
[419026550,1774779032669,-151.0,0.0001259,2]
[419026551,1774779032678,-151.0,0.0001259,2]
[419026552,1774779032688,-151.0,0.0001259,2]
[419026553,1774779032697,-151.0,0.0001259,2]
[419026554,1774779032706,-151.0,0.0001259,2]
[419026555,1774779032715,-151.0,0.0001259,2]
[419026556,1774779032724,-178.50655676,0.0001259,2]
[419026557,1774779032734,-1086.68559147,0.00012597,2]
[419026558,1774779032744,-183.142,0.00012597,2]
[419026559,1774779032753,-1998.805,0.00012597,2]
[419026560,1774779032762,-4566.50840311,0.00012597,2]
[419026561,1774779032772,-150.0,0.00012597,2]
[419026562,1774779032781,-37140.18,0.00012598,2]
[419026563,1774779032791,-200.0,0.000128,4]
[419026564,1774779032800,-166.66,0.00012802,2]
[419026565,1774779032809,-11042.6124,0.00012861,2]
[419026566,1774779032819,-2500.0,0.00012861,2]
[419026567,1774779032828,-527.67098289,0.00012873,2]
[419026568,1774779032837,-336.8339145,0.00012873,2]
[419026569,1774779032846,-16399.79193452,0.00012873,2]
[419026570,1774779032855,-937.74760618,0.00012873,2]
[419026571,1774779032865,-937.74760618,0.00012873,2]
[419026572,1774779032874,-400.0,0.000129,4]
[419026573,1774779032884,-1079.3194623,0.0001296,3]
[419026574,1774779032894,-1000.0,0.0001296,2]
[419026575,1774779032904,-500.0,0.0001296,2]
[419026576,1774779032914,-500.0,0.0001296,2]
[419026577,1774779032923,-500.0,0.0001296,2]
[419026578,1774779032932,-500.0,0.0001296,2]
[419026579,1774779032942,-500.0,0.0001296,2]
[419026580,1774779032951,-500.0,0.0001296,2]
[419026581,1774779032960,-500.0,0.0001296,2]
[419026582,1774779032969,-500.0,0.0001296,2]
[419026583,1774779032979,-500.0,0.0001296,2]
[419026584,1774779032990,-500.0,0.0001296,2]
[419026585,1774779033000,-500.0,0.0001296,2]
[419026586,1774779033010,-500.0,0.0001296,2]
[419026587,1774779033021,-500.0,0.0001296,2]
[419026588,1774779033030,-500.0,0.0001296,2]
[419026589,1774779033041,-500.0,0.0001296,2]
[419026590,1774779033051,-500.0,0.0001296,2]
[419026591,1774779033061,-500.0,0.0001296,2]
[419026592,1774779033070,-537.54642086,0.0001296,2]
[419026593,1774779033080,-500.0,0.0001296,2]
[419026594,1774779033090,-251.83047619,0.0001296,2]
[419026595,1774779033100,-500.0,0.0001296,2]
[419026596,1774779033110,-500.0,0.0001296,2]
[419026597,1774779033121,-500.0,0.0001296,2]
[419026598,1774779033132,-500.0,0.0001296,2]
[419026599,1774779033143,-500.0,0.0001296,2]
[419026600,1774779033154,-650.0,0.0001296,2]
[419026601,1774779033164,-441.77730759,0.0001296,2]
[419026602,1774779033175,-500.0,0.0001296,2]
[419026603,1774779033185,-491.60144177,0.0001296,2]
[419026604,1774779033196,-500.0,0.00012973,2]
[419026605,1774779033205,-500.0,0.00012973,2]
[419026606,1774779033215,-500.0,0.00012973,2]
[419026607,1774779033224,-500.0,0.00012973,2]
[419026608,1774779033235,-500.0,0.00012973,2]
[419026609,1774779033245,-500.0,0.00012973,2]
[419026610,1774779033256,-500.0,0.00012973,2]
[419026611,1774779033266,-347.48373868,0.00012973,2]
[419026612,1774779033276,-500.0,0.00012973,2]
[419026613,1774779033287,-500.0,0.0001298,2]
[419026614,1774779033298,-58217.26008247,0.00012999,2]
[419026615,1774779033309,-250.0,0.00013,2]
[419026616,1774779033318,-1000.0,0.0001306,2]
[419026617,1774779033327,-1680.0,0.00013107,2]
[419026618,1774779033337,-16399.79193447,0.00013209,2]
[419026619,1774779033346,-500.0,0.00013254,2]
[419026620,1774779033355,-255.73,0.00013265,2]
[419026621,1774779033364,-1600.0,0.00013288,2]
[419026622,1774779033374,-937.74760611,0.00013305,2]
[419026623,1774779033384,-937.74760611,0.00013305,2]
[419026624,1774779033393,-527.67098289,0.00013378,2]
[419026625,1774779033405,-2000.0,0.00013406,2]
[419026626,1774779033415,-3240.0,0.00013425,2]
[419026627,1774779033425,-1000.0,0.00013521,2]
[419026628,1774779033435,-500.0,0.00013521,2]
[419026629,1774779033444,-1000.0,0.00013521,2]
[419026630,1774779033454,-1000.0,0.00013521,2]
[419026631,1774779033462,-1000.0,0.00013521,2]
[419026632,1774779033472,-1000.0,0.00013521,2]
[419026633,1774779033483,-499.72769898,0.00013521,2]
[419026634,1774779033492,-500.0,0.00013528,2]
[419026635,1774779033502,-420.0,0.00013533,2]
[419026636,1774779033511,-16399.79193447,0.00013546,2]
[419026637,1774779033521,-167.44,0.00013625,2]
[419026638,1774779033530,-255.0,0.00013693,2]
[419026639,1774779033540,-500.0,0.00013698,2]
[419026640,1774779033550,-500.0,0.00013698,2]
[419026641,1774779033560,-500.0,0.00013698,2]
[419026642,1774779033569,-500.0,0.00013698,2]
[419026643,1774779033579,-500.0,0.00013698,2]
[419026644,1774779033588,-500.0,0.00013698,2]
[419026645,1774779033677,-500.0,0.00013698,2]
[419026646,1774779033688,-500.0,0.00013698,2]
[419026647,1774779033698,-500.0,0.00013698,2]
[419026648,1774779033707,-500.0,0.00013698,2]
[419026649,1774779033717,-601.35,0.00013698,2]
[419026650,1774779033727,-601.35,0.00013698,2]
[419026651,1774779033737,-601.35,0.00013698,2]
[419026652,1774779033747,-601.35,0.00013698,2]
[419026653,1774779033756,-601.35,0.00013698,2]
[419026654,1774779033766,-601.35,0.00013698,2]
[419026655,1774779033776,-500.0,0.00013698,2]
[419026656,1774779033786,-500.0,0.00013698,2]
[419026657,1774779033796,-500.0,0.00013698,2]
[419026658,1774779033807,-500.0,0.00013698,2]
[419026659,1774779033817,-500.0,0.00013698,2]
[419026660,1774779033828,-500.0,0.00013698,2]
[419026661,1774779033837,-500.0,0.00013698,2]
[419026662,1774779033847,-500.0,0.00013698,2]
[419026663,1774779033856,-532.16065142,0.00013698,2]
[419026664,1774779033866,-500.0,0.00013698,2]
[419026665,1774779033875,-500.0,0.00013698,2]
[419026666,1774779033885,-500.0,0.00013698,2]
[419026667,1774779033896,-500.0,0.00013698,2]
[419026668,1774779033908,-500.0,0.00013698,2]
[419026669,1774779033921,-500.0,0.00013698,2]
[419026670,1774779033930,-500.0,0.00013698,2]
[419026671,1774779033940,-500.0,0.00013698,2]
[419026672,1774779033950,-500.0,0.00013698,2]
[419026673,1774779033959,-500.0,0.00013698,2]
[419026674,1774779033970,-161.59374025,0.00013698,2]
[419026675,1774779033979,-500.0,0.00013698,2]
[419026676,1774779033988,-500.0,0.00013698,2]
[419026677,1774779033998,-500.0,0.00013698,2]
[419026678,1774779034007,-500.0,0.00013698,2]
[419026679,1774779034017,-500.0,0.00013698,2]
[419026680,1774779034028,-500.0,0.00013698,2]
[419026681,1774779034037,-500.0,0.00013698,2]
[419026682,1774779034047,-150.0,0.00013699,2]
[419026683,1774779034057,-150.0,0.00013699,2]
[419026684,1774779034068,-1958.47,0.00013699,2]
[419026685,1774779034078,-601.35,0.00013699,2]
[419026686,1774779034088,-500.0,0.00013699,2]
[419026687,1774779034098,-1855.3,0.000137,2]
[419026688,1774779034107,-1100.51,0.000137,2]
[419026689,1774779034116,-625.53,0.000137,2]
[419026690,1774779034126,-1407.81,0.000137,2]
[419026691,1774779034135,-937.74760611,0.00013738,2]
[419026692,1774779034145,-937.74760611,0.00013738,2]
[419026693,1774779034154,-196.821,0.000138,2]
[419026694,1774779034164,-500.0,0.00013802,2]
[419026695,1774779034173,-527.67098289,0.00013882,2]
[419026696,1774779034183,-16399.79193447,0.00013882,2]
[419026697,1774779034193,-600.0,0.000139,5]
[419026698,1774779034203,-501.0,0.00014,2]
[419026699,1774779034214,-204.57168,0.00014,2]
[419026700,1774779034223,-1500.0,0.00014068,2]
[419026701,1774779034233,-1500.0,0.00014068,2]
[419026702,1774779034243,-1500.0,0.00014068,2]
[419026703,1774779034253,-245.04491428,0.00014068,2]
[419026704,1774779034263,-500.0,0.0001408,2]
[419026705,1774779034273,-527.96,0.00014115,2]
[419026706,1774779034283,-60000.0,0.00014115,2]
[419026707,1774779034293,-937.74760611,0.0001417,2]
[419026708,1774779034302,-16399.79193447,0.00014218,2]
[419026709,1774779034311,-1958.47,0.00014384,2]
[419026710,1774779034321,-336.8339145,0.00014387,2]
[419026711,1774779034330,-527.67098289,0.00014387,2]
[419026712,1774779034339,-2351.0,0.00014417,2]
[419026713,1774779034348,-160.0,0.00014508,2]
[419026714,1774779034357,-160.0,0.00014508,2]
[419026715,1774779034367,-959.8630956,0.00014508,2]
[419026716,1774779034376,-160.0,0.00014508,2]
[419026717,1774779034386,-16399.79193447,0.00014555,2]
[419026718,1774779034396,-272.0,0.00014562,2]
[419026719,1774779034405,-217.0,0.00014562,2]
[419026720,1774779034415,-150.0,0.00014562,2]
[419026721,1774779034424,-200.0,0.00014562,2]
[419026722,1774779034434,-224.549,0.00014562,2]
[419026723,1774779034444,-250.0,0.00014562,2]
[419026724,1774779034454,-196.331,0.00014562,2]
[419026725,1774779034463,-237.595,0.00014562,2]
[419026726,1774779034472,-162.713,0.00014562,2]
[419026727,1774779034481,-250.0,0.00014562,2]
[419026728,1774779034492,-193.362,0.00014562,2]
[419026729,1774779034502,-165.951,0.00014562,2]
[419026730,1774779034513,-214.712,0.00014562,2]
[419026731,1774779034523,-250.0,0.00014562,2]
[419026732,1774779034533,-179.0,0.00014562,2]
[419026733,1774779034543,-239.03,0.00014562,2]
[419026734,1774779034553,-3518.0,0.00014562,2]
[419026735,1774779034562,-1346.0,0.00014562,2]
[419026736,1774779034572,-1045.0,0.00014562,2]
[419026737,1774779034582,-1262.0,0.00014562,2]
[419026738,1774779034592,-925.0,0.00014562,2]
[419026739,1774779034601,-1216.0,0.00014562,2]
[419026740,1774779034610,-6013.0,0.00014562,2]
[419026741,1774779034619,-3765.0,0.00014562,2]
[419026742,1774779034628,-500.0,0.00014616,2]
[419026743,1774779034638,-1509.58099597,0.00014616,2]
[419026744,1774779034647,-2000.0,0.00014616,2]
[419026745,1774779034656,-2000.0,0.00014616,2]
[419026746,1774779034666,-1000.0,0.00014628,2]
[419026747,1774779034676,-167.44,0.00014674,2]
[419026748,1774779034685,-1600.0,0.00014764,2]
[419026749,1774779034696,-587.0,0.00014852,2]
[419026750,1774779034705,-433.0,0.00014889,2]
[419026751,1774779034714,-527.67098289,0.00014891,2]
[419026752,1774779034724,-16399.79193447,0.00014891,2]
[419026753,1774779034733,-2000.0,0.00014895,2]
[419026754,1774779034743,-254.129501,0.0001492,7]
[419026755,1774779034752,-175.69447,0.0001492,7]
[419026756,1774779034762,-207.167174,0.00014923,7]
[419026757,1774779034771,-345.278623,0.00014949,7]
[419026758,1774779034781,-402.61,0.00014962,2]
[419026759,1774779034791,-300.0,0.00015,2]
[419026760,1774779034800,-7093.2976499,0.00015,7]
[419026761,1774779034810,-212.4826874,0.00015001,2]
[419026762,1774779034820,-500.0,0.00015033,2]
[419026763,1774779034903,-395.74377257,0.00015033,2]
[419026764,1774779034913,-609.23348249,0.00015033,2]
[419026765,1774779034923,-500.0,0.00015033,2]
[419026766,1774779034932,-500.0,0.00015033,2]
[419026767,1774779034942,-500.0,0.00015033,2]
[419026768,1774779034951,-154.53434814,0.00015068,2]
[419026769,1774779034960,-500.0,0.00015068,2]
[419026770,1774779034970,-1958.47,0.00015068,2]
[419026771,1774779034980,-258.2567,0.000151,2]
[419026772,1774779034989,-2500.0,0.00015164,2]
[419026773,1774779034999,-2500.0,0.00015164,2]
[419026774,1774779035008,-1510.44418561,0.00015176,2]
[419026775,1774779035018,-549.41954895,0.00015199,2]
[419026776,1774779035027,-500.0,0.00015199,2]
[419026777,1774779035036,-500.0,0.00015199,2]
[419026778,1774779035046,-500.0,0.00015199,2]
[419026779,1774779035056,-1428.38747117,0.00015199,2]
[419026780,1774779035066,-500.0,0.00015199,2]
[419026781,1774779035075,-9552.16786547,0.00015199,2]
[419026782,1774779035084,-500.0,0.00015199,2]
[419026783,1774779035094,-500.0,0.00015199,2]
[419026784,1774779035103,-500.0,0.00015199,2]
[419026785,1774779035112,-500.0,0.00015199,2]
[419026786,1774779035121,-500.0,0.00015199,2]
[419026787,1774779035131,-500.0,0.00015199,2]
[419026788,1774779035140,-500.0,0.00015199,2]
[419026789,1774779035149,-500.0,0.00015199,2]
[419026790,1774779035159,-500.0,0.00015199,2]
[419026791,1774779035168,-500.0,0.00015199,2]
[419026792,1774779035178,-500.0,0.00015199,2]
[419026793,1774779035187,-352.89483159,0.00015199,2]
[419026794,1774779035198,-500.0,0.00015199,2]
[419026795,1774779035207,-500.0,0.00015199,2]
[419026796,1774779035217,-500.0,0.00015199,2]
[419026797,1774779035226,-500.0,0.00015199,2]
[419026798,1774779035236,-500.0,0.00015199,2]
[419026799,1774779035246,-500.0,0.00015199,2]
[419026800,1774779035255,-500.0,0.00015199,2]
[419026801,1774779035265,-500.0,0.00015199,2]
[419026802,1774779035274,-500.0,0.00015199,2]
[419026803,1774779035283,-500.0,0.00015199,2]
[419026804,1774779035292,-151.0,0.00015199,2]
[419026805,1774779035302,-500.0,0.00015199,2]
[419026806,1774779035311,-500.0,0.00015199,2]
[419026807,1774779035321,-500.0,0.00015199,2]
[419026808,1774779035330,-500.0,0.00015199,2]
[419026809,1774779035340,-500.0,0.00015199,2]
[419026810,1774779035349,-500.0,0.00015199,2]
[419026811,1774779035359,-174.61919141,0.00015199,2]
[419026812,1774779035368,-250.0,0.00015199,2]
[419026813,1774779035378,-250.0,0.00015199,2]
[419026814,1774779035387,-250.0,0.00015199,2]
[419026815,1774779035397,-250.0,0.00015199,2]
[419026816,1774779035406,-250.0,0.00015199,2]
[419026817,1774779035415,-250.0,0.00015199,2]
[419026818,1774779035427,-250.0,0.00015199,2]
[419026819,1774779035437,-250.0,0.00015199,2]
[419026820,1774779035446,-156.65188468,0.00015199,2]
[419026821,1774779035456,-250.0,0.00015199,2]
[419026822,1774779035466,-250.0,0.00015199,2]
[419026823,1774779035475,-250.0,0.00015199,2]
[419026824,1774779035485,-262.90206542,0.00015199,2]
[419026825,1774779035494,-371.288842,0.000152,2]
[419026826,1774779035504,-991.577344,0.000152,2]
[419026827,1774779035513,-500.0,0.000152,2]
[419026828,1774779035523,-500.0,0.000152,2]
[419026829,1774779035532,-500.0,0.000152,2]
[419026830,1774779035541,-402.61,0.00015201,2]
[419026831,1774779035551,-10000.0,0.00015205,2]
[419026832,1774779035560,-16399.79193447,0.00015227,2]
[419026833,1774779035570,-250.0,0.00015234,2]
[419026834,1774779035580,-601.35,0.00015253,2]
[419026835,1774779035590,-500.0,0.00015253,2]
[419026836,1774779035599,-500.0,0.00015254,2]
[419026837,1774779035608,-9905.5980765,0.00015254,2]
[419026838,1774779035618,-151.0,0.00015254,2]
[419026839,1774779035627,-272.62944185,0.00015254,2]
[419026840,1774779035636,-2831.49,0.00015308,2]
[419026841,1774779035646,-500.0,0.00015309,2]
[419026842,1774779035656,-10272.10520533,0.00015309,2]
[419026843,1774779035666,-151.0,0.00015309,2]